Cogmind - Beta 9.1 @@@ ROGUE MODE // 2019.11.05 @ 21:42:45 Player: Ldd Styx Result: Destroyed by G-34 Mercenary with Small Laser Performance ------------- Evolutions (1) 500 Regions Visited (3) 600 Robots Destroyed (19) 95 Value Destroyed (473) 473 Prototype IDs (1) 20 Alien Tech Used (0) 0 Bonus (0) 0 TOTAL SCORE: 1688 Bonus ------- None Cogmind --------- Core Integrity 0/400 Matter 300/300 Energy 100/100 System Corruption 0% Temperature Cool (6) Location -9/Materials Parts ------- Power (1) Propulsion (2) Utility (4) High-capacity Storage Unit High-capacity Storage Unit High-capacity Storage Unit Weapon (2) Hammer Mace Inventory (28) Light Nuclear Core Light Treads Improved Treads Improved Heat Sink High-capacity Storage Unit High-capacity Storage Unit High-capacity Storage Unit High-capacity Storage Unit High-capacity Storage Unit Small Battery (100) Medium Laser Light Assault Rifle Light Assault Rifle Mining Laser Mining Laser Peak State ------------ Power Ion Engine Propulsion Improved Treads Improved Treads Utility Cooling System High-capacity Storage Unit Small Battery Experimental Sensor Array Weapon Medium Laser Mace Inventory Light Ion Engine Improved Treads Improved Treads Improved Terrain Scanner Light Assault Rifle Mining Laser Hammer [Rating: 19] Favorites ----------- Power Ion Engine Engine Ion Engine Propulsion Improved Treads Treads Improved Treads Leg Aluminum Leg Wheel Compact Wheel Utility High-capacity Storage Unit Device Improved Terrain Scanner Storage High-capacity Storage Unit Processor Seismic Analyzer Weapon Mace Energy Gun Medium Laser Ballistic Gun Light Assault Rifle Special Weapon Mining Laser Impact Weapon Mace Build | -11 -10 -10 -9 ------- Run | Scr Mat Min Mat Slots Evolved 2 | . . . 2 Power . | . . . . Propulsion . | . . . . Utility 2 | . . . 2 Weapon . | . . . . Parts Attached 52 | 12 4 8 28 Power 7 | 2 . 1 4 Engine 7 | 2 . 1 4 Core . | . . . . Reactor . | . . . . Propulsion 11 | 3 . 1 7 Treads 7 | . . . 7 Leg 3 | 2 . 1 . Wheel 1 | 1 . . . Hover . | . . . . Flight . | . . . . Utility 13 | 3 . 1 9 Device 5 | 1 . 1 3 Storage 7 | 1 . . 6 Processor 1 | 1 . . . Hackware . | . . . . Protection . | . . . . Artifact . | . . . . Weapon 21 | 4 4 5 8 Energy Gun 4 | 1 1 1 1 Energy Cannon . | . . . . Ballistic Gun 5 | 1 1 2 1 Ballistic Cannon . | . . . . Launcher . | . . . . Special Weapon 8 | 2 2 2 2 Impact Weapon 4 | . . . 4 Slashing Weapon . | . . . . Piercing Weapon . | . . . . Special Melee Weapon . | . . . . Unidentified Prototypes 1 | . . 1 . Parts Lost 10 | . . 1 9 Power 2 | . . . 2 Propulsion 4 | . . . 4 Utility 3 | . . . 3 Weapon 1 | . . 1 . Highest Loss Streak 5 | . . 1 5 Average Slot Usage (%) 95 | . 100 95 95 Engine 11 | . 14 14 10 Treads 12 | . . . 17 Leg 10 | . 28 28 2 Device 17 | . 14 14 18 Storage 15 | . . . 22 Processor 4 | . 14 13 . Energy Gun 2 | . 7 1 2 Ballistic Gun 2 | . 7 2 1 Special Weapon 6 | . 13 19 . Impact Weapon 11 | . . . 16 Naked Turns . | . . . . Heaviest Build 106 | 12 9 8 106 Greatest Support 46 | 20 20 20 46 Greatest Overweight (x) 5 | 1 . . 5 Average Overweight (x) . | . . . . Largest Inventory Capacity 28 | 6 4 4 28 Average Capacity 10 | 5 4 4 14 Most Carried 15 | 6 4 4 15 Average Carried 7 | 5 4 3 9 Final Capacity 28 | 4 4 4 28 Final Carried 15 | 4 4 3 15 Class Distribution -------------------- 53% | Mutant 31% | Scavenger-Mutant 15% | Hauler-Mutant Dominant Class ---------------- Scavenger-Mutant | -10/Materials Scavenger-Mutant | -10/Mines Mutant | -9/Materials Resources | -11 -10 -10 -9 ----------- Run | Scr Mat Min Mat Matter Collected 717 | 321 . 125 271 Remotely . | . . . . Salvage Created 677 | 167 . 88 422 Parts 28 | 13 . 2 13 Haulers Intercepted . | . . . . Recyclers Shooed . | . . . . Parts Field Recycled . | . . . . Retrieved Matter . | . . . . Parts Self-Destructed . | . . . . Prevented . | . . . . Kills | -11 -10 -10 -9 ------- Run | Scr Mat Min Mat Combat Hostiles Destroyed 13 | . . 2 11 Melee 8 | . . . 8 Guns 2 | . . 2 . Classes Destroyed 7 | 3 . 1 3 Worker 1 | 1 . . . Tunneler 3 | 3 . . . Recycler 1 | 1 . . . Watcher 1 | . . . 1 Swarmer 3 | . . . 3 Grunt 7 | . . 2 5 Sentry 3 | . . . 3 Best Kill Streak 5 | 5 . 2 3 Combat Bots Only 3 | . . 2 3 Max Kills in Single Turn 1 | 1 . 1 1 Gunslinging . | . . . . Exploded . | . . . . Melee 1 | . . . 1 Uniques/NPCs Destroyed . | . . . . Combat | -11 -10 -10 -9 -------- Run | Scr Mat Min Mat Damage Taken 1908 | . . 276 1632 Core 456 | . . 54 402 Absorbed by Shields . | . . . . Core Remaining (%) 89 | 100 . 78 . Volleys Fired 46 | 8 10 26 2 Largest 2 | 2 2 2 1 Hottest 200 | 70 200 200 100 Shots Fired 83 | 16 20 45 2 Gun 38 | 16 6 16 . Cannon . | . . . . Launcher . | . . . . Special 45 | . 14 29 2 Kinetic 19 | 8 3 8 . Thermal 64 | 8 17 37 2 Explosive . | . . . . Electromagnetic . | . . . . Robot Hit Streak 13 | 8 12 13 . Robot Miss Streak 2 | 1 . 2 . Penetration Max . | . . . . Secondary Targets . | . . . . Shots Hit Robots 95 | 11 4 11 69 Core Hits 25 | 7 1 5 12 Critical Hits . | . . . . Critical Kills . | . . . . Critical Parts Destroyed . | . . . . Melee Attacks 83 | . . . 83 Impact 83 | . . . 83 Slashing . | . . . . Piercing . | . . . . Sneak Attacks 1 | . . . 1 Combat Hostiles . | . . . . Follow-up Attacks 10 | . . . 10 Damage Inflicted 1416 | 140 43 120 1113 Guns 303 | 140 43 120 . Cannons . | . . . . Explosions . | . . . . Melee 1113 | . . . 1113 Ramming . | . . . . Kinetic 96 | 38 17 41 . Thermal 207 | 102 26 79 . Explosive . | . . . . Electromagnetic . | . . . . Impact 1113 | . . . 1113 Slashing . | . . . . Piercing . | . . . . Highest Corruption . | . . . . Average Corruption . | . . . . Corruption Purged . | . . . . Overload Shots . | . . . . Overflow Damage 34 | . . . 34 Projectiles . | . . . . Explosions . | . . . . Melee 34 | . . . 34 Knockbacks . | . . . . Impact . | . . . . Kinetic . | . . . . Secondary . | . . . . Self-Inflicted Damage . | . . . . Shots . | . . . . Rammed . | . . . . Targets Rammed . | . . . . Kicked . | . . . . Crushed . | . . . . Highest Temperature 224 | 70 134 224 . Average Temperature 54 | 30 60 55 . Received Heat Transfer 756 | . . 156 600 Siege Activations . | . . . . Robots Corrupted . | . . . . Combat Hostiles . | . . . . Parts Fried 5 | . . . 5 Impact Corruptions 7 | . . . 7 Robots Melted . | . . . . Combat Hostiles . | . . . . Parts Melted . | . . . . Heat Transferred 545 | 296 74 175 . Parts Sabotaged . | . . . . Parts Stolen . | . . . . Parts Stripped . | . . . . Power Chain Reactions . | . . . . Missiles Intercepted . | . . . . Alert | -11 -10 -10 -9 ------- Run | Scr Mat Min Mat Peak Influence 127 | 25 16 56 127 Average Influence 44 | 12 16 49 52 Maximum Alert Level . | . . . . Low Security (%) 100 | . . . . Level 1 . | . . . . Level 2 . | . . . . Level 3 . | . . . . Level 4 . | . . . . Level 5 . | . . . . High Security . | . . . . Max Security . | . . . . Squads Dispatched 3 | . 1 . 2 Investigation . | . . . . Extermination . | . . . . Reinforcement 3 | . 1 . 2 Assault . | . . . . Garrison . | . . . . Intercept . | . . . . Construction Impeded . | . . . . Haulers Reinforced . | . . . . Stealth | -11 -10 -10 -9 --------- Run | Scr Mat Min Mat Distress Signals . | . . . . Communications Jammed . | . . . . Distress Signals . | . . . . Times Spotted 35 | . 3 4 28 Peak Tracking Total 8 | . 2 2 8 Tactical Retreats 4 | . 1 1 2 Traps | -11 -10 -10 -9 ------- Run | Scr Mat Min Mat Traps Triggered . | . . . . Indirectly . | . . . . Trap Hack Attempts . | . . . . Triggered . | . . . . Disarmed . | . . . . Reprogrammed . | . . . . Reused . | . . . . Traps Extracted . | . . . . Installed . | . . . . Triggered . | . . . . Machines | -11 -10 -10 -9 ---------- Run | Scr Mat Min Mat Machines Disabled . | . . . . Max in Single Turn . | . . . . Machines Sabotaged . | . . . . Garrisons Compromised . | . . . . Overloaded Fab Kills . | . . . . Fab Network Shutdowns . | . . . . Hacking | -11 -10 -10 -9 --------- Run | Scr Mat Min Mat Machines Accessed 2 | . . . 2 Terminals 2 | . . . 2 Fabricators . | . . . . Repair Stations . | . . . . Recycling Units . | . . . . Scanalyzers . | . . . . Garrison Access . | . . . . Total Hacks 4 | . . . 4 Successful 3 | . . . 3 Failed 1 | . . . 1 Catastrophic . | . . . . Database Lockouts . | . . . . Manual 1 | . . . 1 Terminals 4 | . . . 4 Fabricators . | . . . . Repair Stations . | . . . . Recycling Units . | . . . . Scanalyzers . | . . . . Garrison Access . | . . . . Terminal Hacks 3 | . . . 3 Record 2 | . . . 2 Unreport Threat 1 | . . . 1 Fabricator Hacks . | . . . . Repair Station Hacks . | . . . . Recycling Unit Hacks . | . . . . Scanalyzer . | . . . . Garrison Access Hacks . | . . . . Unauthorized Hacks . | . . . . Terminals . | . . . . Fabricators . | . . . . Repair Stations . | . . . . Recycling Units . | . . . . Scanalyzers . | . . . . Garrison Access . | . . . . Data Cores Recovered . | . . . . Used . | . . . . Hacking Detections 2 | . . . 2 Full Trace Events . | . . . . Feedback Events . | . . . . Feedback Blocked . | . . . . Robot Schematics Acquired . | . . . . Robots Built . | . . . . Matter . | . . . . Time . | . . . . Total Robot Build Rating . | . . . . Part Schematics Acquired . | . . . . Parts Built . | . . . . Matter . | . . . . Time . | . . . . Total Part Build Rating . | . . . . Parts Repaired . | . . . . Time . | . . . . Parts Recycled . | . . . . Recycled Matter . | . . . . Retrieved Matter . | . . . . Retrieved Components . | . . . . Parts Scanalyzed . | . . . . Part Schematics Acquired . | . . . . Parts Damaged . | . . . . Bothacking | -11 -10 -10 -9 ------------ Run | Scr Mat Min Mat Used RIF Installer . | . . . . Robots Hacked . | . . . . Non-combat . | . . . . Combat . | . . . . Robot Hacks Applied . | . . . . Relay Couplers Released . | . . . . Robots Rewired . | . . . . Allies Hacked . | . . . . Hacks Repelled . | . . . . Allies | -11 -10 -10 -9 -------- Run | Scr Mat Min Mat Total Allies . | . . . . Largest Group . | . . . . Highest-Rated Group . | . . . . Highest-Rated Ally . | . . . . Total Orders . | . . . . Ally Attacks . | . . . . Total Damage . | . . . . Kills . | . . . . Allies Corrupted . | . . . . Allies Melted . | . . . . Intel | -11 -10 -10 -9 ------- Run | Scr Mat Min Mat Robot Analysis Total . | . . . . Derelict Logs Recovered 1 | . . 1 . Drone Launches . | . . . . Drone Recoveries . | . . . . Exploration | -11 -10 -10 -9 ------------- Run | Scr Mat Min Mat Turns Passed 1695 | 188 149 325 1033 Spaces Moved 788 | 109 44 151 484 Core 8 | 8 . . . Treads 369 | . . . 369 Legs 403 | 93 44 151 115 Wheels 8 | 8 . . . Hover . | . . . . Flight . | . . . . Fastest Speed 50 | 50 120 120 120 Average Speed 143 | 121 120 120 157 Slowest Speed 260 | 150 120 120 260 Overloaded Moves . | . . . . Propulsion Burnouts . | . . . . Robots Hopped . | . . . . Cave-ins Triggered . | . . . . Exploration Rate (%) 22 | 5 16 36 32 Regions Visited 3 Branch Regions 1 Pre-discovered Areas 1 | . . 1 . Known Exits Taken . | . . . . Unknown Exits Taken 3 | 1 1 1 . Scrap Searched 1 | . . 1 . Spaces Dug 42 | . 13 27 2 Terrain Destroyed 42 | . 13 27 2 Melee . | . . . . Projectile 42 | . 13 27 2 AOE . | . . . . Actions | -11 -10 -10 -9 --------- Run | Scr Mat Min Mat Total 1074 | 151 91 194 638 Wait 57 | . 34 . 23 Move 785 | 108 43 150 484 Hop . | . . . . Pick Up 40 | 14 . 4 22 Fast Attach 8 | 6 . . 2 Attach 16 | 4 . 2 10 Detach 4 | 1 . . 3 Swap 28 | 2 4 6 16 Drop 20 | 8 . 6 6 Fire 46 | 8 10 26 2 Melee 70 | . . . 70 Ram . | . . . . Kick . | . . . . Crush . | . . . . Escape Stasis . | . . . . Rewire . | . . . . Trap . | . . . . Miscellaneous . | . . . . Route ------- -11/Scrapyard -10/Materials -10/Mines -9/Materials (discovered 1 exit: [*Min]) History --------- Turn | Location | Event 37 | -11/Scrapyard | Discovered new exit (range 16) 189 | -11/Scrapyard | Entered Materials 304 | -10/Materials | Discovered new exit (range 8) 338 | -10/Materials | Entered Mines 436 | -10/Mines | Learned location of Zion (-7) 620 | -10/Mines | Discovered new exit (range 10) 645 | -10/Mines | Found a damaged Exp. Sensor Array with a note attached 651 | -10/Mines | Found Prototype Device 655 | -10/Mines | Identified Exp. Sensor Array 663 | -10/Mines | Entered Materials 663 | -9/Materials | Evolved 2 slots: Utility x2 939 | -9/Materials | Build established: Mutant 1328 | -9/Materials | Discovered new exit (range 10) 1658 | -9/Materials | Core integrity fell below 50% 1693 | -9/Materials | Core integrity fell below 20% 1696 | -9/Materials | Destroyed by G-34 Mercenary with Small Laser Last Messages --------------- 01519_ U-05 Engineer builds a Door. 01531_ Acquired Hcp. Storage Unit. 01580_ O-16 Technician: "IFF HANDSHAKE FAILED. SECURING TERMINAL." 01589_ ALERT: Hostiles spotted, dispatching reinforcements to Terminal M003. 01629_ K-01 Serf destroyed. 01630_ ALERT: Hostiles spotted, dispatching reinforcements to Terminal M007. 01652_ Hammer follow-up attack on Y-45 Defender. 01654_ Imp. Treads destroyed. 01661_ C-30 ARC bursts open, deploying its payload. 01661_ G-47 Trooper unfolds itself. 01661_ G-34 Mercenary unfolds itself. 01663_ Imp. Treads destroyed. 01667_ Y-45 Defender destroyed. 01674_ Acquired Lgt. Treads. 01674_ Ion Engine destroyed. 01674_ Imp. Terrain Scanner destroyed. 01679_ Acquired 40 matter. 01690_ Lgt. Treads destroyed. Map ----- +----------------------------------------------------+ | ???????????????????????????????????????# | | ??????????????????????????????????? | | ????????????????????????????????????#####+######## | | ????????????????????????????????????#???? ?????#?# | | ?????????????????????????????????????????????????# | | ?????????????????????????????????????????????????# | | ???????????????????????????????????????? ??? ???# | | ????????????????????????????????? ????#???? ?????# | | ?????????????????????????????????????????? ??????# | | ????????????????????????????????????????#######?## | | ???????????????????? ?????????? #??????## #### | | ?????????????????????????????? #?#?????# #??# | | ?????????????????????????##### # ?? ???# #??# | | ????????????????????????# # ? ????# ##?# | | ?????????????? ?????????# g +?? ????# #### | | ????????????????????????# rg #?"????## %+ | | ????????????????????????# g#????????# # | | ?????????????#??????????# #????????####+## | | ?????????????# ????????# #??##?????#?# | | ????????????## ???#?### #??#????#???# ##+## | | ????????????# ##### #????????#### ## | | ??????????### o ## ?? ??# ##!! | | ??????? gg +? ???? # ##! | | ????????????# g ######### ## | | ????????????# ##### % ## | | ?????????????????????####@##### + | | ?????????????????????# Y #?# ##### #### | | ?????????????????????# ### #?#?# #??# | | ?????????????????????#""" Y + #???# #??#! | | ????????????????#????#"R # #???# ####### | | ??????????????????#??#""" # #???# # | | ?????????????????????# + #??## # #?### | | ?????????????????????##########+#???# # #???? | | ????????????????????????????? #??# #?#?? | | ????????????????????????????# #??# #?#?? | | ?????????????? ?????????????# #??# ##??? | | ????????????????????????????# =#??##### #???? | | ???????????????? ??????????# #?????## #??## | | ????????????????????#???????# #??????# #??# | | ???????????????????#????????# ######## #??# | | ????????????????????????????# # # #??# | | ??????????????????????#?????# # # ####= | | ????????????????????????????###### # + | | ??????????????????????#??????????# " # %#! | | ?????????????????????????????????# "" # ## | | ?????????????????????????????????# "" # | | ?????????????????????????????????# """ + | | ?????????????????????????????????# "" # | | ?????????????????????????????????# """ ########+# | | ?????????????????????????????????# """ #??# | +----------------------------------------------------+ Best States ------------- Heat Dissipation 50 Energy Generation 10 Energy Capacity 350 Matter Stores 300 Matter Capacity 300 Sight Range 16 Robot Scan Range 30 Terrain Scan Range 16 Terrain Scan Density 60 Evasion (%) 50 Recoil Reduction 2 Item Schematics ----------------- None Robot Schematics ------------------ None Fabricated ------------ Nothing Alien Tech Used ----------------- None Achievements -------------- None Challenges ------------ None Game ------ Seed LargeImpulseLance Manual? 0 Play Time 00:30:10 Cumulative 10.6 hours Start 2019.11.05 @ 20:32:05 End 2019.11.05 @ 21:42:45 Sessions 1 Manual Loads 0 Difficulty Rogue Special Mode None Game No. 8 Rogue 8 Adventurer 0 Explorer 0 Win Type - Total 0 Types 0/0/0/0/0/0/0 Lore% 5 Gallery% 12 Achievement% 12 Wizard Run 0 Options --------- ASCII 0 Keyboard 0 Movement Arrows Keybinds 0 Fullscreen 1 Font 18/SmallcapsGlow Map View 76x50 Tactical HUD 1 Map Filters NONE Filters NONE Steam 0 RUN: db78cea2-77fc-45d4-9bc5-0e1e4d9fe394